[Event "Paul Keres Memorial-U20 Girls 2020"]
[Site "Parnu"]
[Date "2020.07.30"]
[Round "3.1"]
[White "Nazarova, Anastasia"]
[Black "Olde, Margareth"]
[Result "1/2-1/2"]
[ECO "C90"]
[WhiteElo "2171"]
[BlackElo "2201"]
[Annotator "ChessBase"]
[PlyCount "99"]
[EventDate "2020.07.27"]
[EventType "tourn"]
[EventCountry "EST"]
[SourceTitle "playchess.com"]
[Source "ChessBase"]
[SourceQuality "1"]
[TimeControl "5400+30"]

1. e4 {[%emt 0:00:00]} e5 {[%emt 0:00:00]} 2. Nf3 {[%emt 0:00:00]} Nc6 {[%emt 0:00:00]} 3. Bb5 {[%emt 0:00:00]} a6 {[%emt 0:00:00]} 4. Ba4 {[%emt 0:00:00]} Nf6 {[%emt 0:00:00]} 5. d3 {[%emt 0:00:00]} d6 {[%emt 0:00:12]} 6. c3 {[%emt 0:00:00]} Be7 {[%emt 0:00:26]} 7. O-O {[%emt 0:00:01]} O-O {[%emt 0:00:56]} 8. Re1 {[%emt 0:00:07]} b5 {[%emt 0:00:11]} 9. Bb3 {[%emt 0:00:10]} Na5 {[%emt 0:00:13]} 10. Bc2 {[%emt 0:00:03]} c5 {[%emt 0:00:09]} 11. Nbd2 {[%emt 0:00:09]} Nc6 {[%emt 0:00:30]} 12. Nf1 {[%emt 0:00:08]} Re8 {[%emt 0:00:45]} 13. Ng3 {[%emt 0:00:18]} h6 {[%emt 0:00:43]} 14. h3 {[%emt 0:00:16]} Be6 {[%emt 0:00:46]} 15. d4 {[%emt 0:03:43]} cxd4 {[%emt 0:00:15]} 16. cxd4 {[%emt 0:00:03]} exd4 {[%emt 0:00:11]} 17. Nxd4 {[%emt 0:00:04]} Nxd4 {[%emt 0:00:08]} 18. Qxd4 {[%emt 0:00:05]} Rc8 {[%emt 0:00:11]} 19. Bb3 {[%emt 0:05:18]} Bxb3 {[%emt 0:02:29]} 20. axb3 {[%emt 0:00:19]} d5 {[%emt 0:03:32]} 21. e5 {[%emt 0:24:12]} Bc5 {[%emt 0:00:13]} 22. Qf4 {[%emt 0:00:05]} Ne4 {[%emt 0:07:00]} 23. Nxe4 {[%emt 0:22:09]} dxe4 {[%emt 0:01:27]} 24. Be3 {[%emt 0:07:06]} Qd5 {[%emt 0:20:08]} 25. Rxa6 {[%emt 0:12:32]} Bxe3 {[%emt 0:09:07]} 26. Rxe3 {[%emt 0:04:40]} Rxe5 {[%emt 0:03:40]} 27. Rg3 {[%emt 0:06:25]} Rg5 {[%emt 0:05:10]} 28. Rd6 {[%emt 0:04:54]} Qf5 {[%emt 0:09:41]} 29. Qxf5 {[%emt 0:01:47]} Rxf5 {[%emt 0:00:05]} 30. Rd2 {[%emt 0:03:24]} Rfc5 {[%emt 0:03:57]} 31. Re3 {[%emt 0:00:44]} f5 {[%emt 0:01:11]} 32. g4 {[%emt 0:01:44]} g6 {[%emt 0:02:48]} 33. gxf5 {[%emt 0:01:45]} gxf5 {[%emt 0:00:04]} 34. Rd6 {[%emt 0:00:35]} Kf7 {[%emt 0:11:19]} 35. Rg3 {[%emt 0:01:50]} f4 {[%emt 0:08:05]} 36. Rg4 {[%emt 0:00:03]} Rg5 {[%emt 0:01:02]} 37. Rxh6 {[%emt 0:01:21]} Rc1+ {[%emt 0:02:22]} 38. Kg2 {[%emt 0:00:30]} Rxg4+ {[%emt 0:01:22]} 39. hxg4 {[%emt 0:00:04]} Rc2 {[%emt 0:00:30]} 40. Rh5 {[%emt 0:01:09]} Kg6 {[%emt 0:05:45]} 41. Rf5 {[%emt 0:01:22]} Rxb2 {[%emt 0:00:40]} 42. Rxf4 {[%emt 0:00:04]} e3 {[%emt 0:00:09]} 43. Kf1 {[%emt 0:01:34]} Rxb3 {[%emt 0:01:27]} 44. fxe3 {[%emt 0:00:12]} Rxe3 {[%emt 0:01:42]} 45. Rb4 {[%emt 0:00:18]} Re5 {[%emt 0:00:07]} 46. Kf2 {[%emt 0:00:09]} Kg5 {[%emt 0:00:42]} 47. Kf3 {[%emt 0:00:14]} Rc5 {[%emt 0:00:12]} 48. Ke3 {[%emt 0:00:32]} Rc4 {[%emt 0:00:55]} 49. Rxc4 {[%emt 0:00:07]} bxc4 {[%emt 0:00:04]} 50. Kd4 {[%emt 0:00:02]} 1/2-1/2

[Event "Paul Keres Memorial-U20 Girls 2020"]
[Site "Parnu"]
[Date "2020.07.30"]
[Round "3.2"]
[White "Narva, Mai"]
[Black "Kiolbasa, Oliwia"]
[Result "1/2-1/2"]
[ECO "C60"]
[WhiteElo "2333"]
[BlackElo "2160"]
[Annotator "ChessBase"]
[PlyCount "71"]
[EventDate "2020.07.27"]
[EventType "tourn"]
[EventCountry "EST"]
[SourceTitle "playchess.com"]
[Source "ChessBase"]
[SourceQuality "1"]
[TimeControl "5400+30"]

1. e4 {[%emt 0:00:00]} e5 {[%emt 0:00:00]} 2. Nf3 {[%emt 0:00:00]} Nc6 {[%emt 0:00:00]} 3. Bb5 {[%emt 0:00:00]} Nge7 {[%emt 0:00:11]} 4. O-O {[%emt 0:00:24]} g6 {[%emt 0:00:21]} 5. c3 {[%emt 0:00:30]} a6 {[%emt 0:00:56]} 6. Ba4 {[%emt 0:01:33]} Bg7 {[%emt 0:00:40]} 7. d4 {[%emt 0:00:37]} exd4 {[%emt 0:00:35]} 8. cxd4 {[%emt 0:00:08]} b5 {[%emt 0:00:51]} 9. Bb3 {[%emt 0:01:44]} d6 {[%emt 0:02:11]} 10. Nc3 {[%emt 0:02:18]} O-O {[%emt 0:00:15]} 11. h3 {[%emt 0:01:29]} Na5 {[%emt 0:00:25]} 12. Bc2 {[%emt 0:03:26]} c5 {[%emt 0:00:11]} 13. Bg5 {[%emt 0:19:26]} Qc7 {[%emt 0:08:40]} 14. Rc1 {[%emt 0:04:07]} Bb7 {[%emt 0:06:45]} 15. b3 {[%emt 0:05:39]} Nac6 {[%emt 0:13:21]} 16. Bb1 {[%emt 0:13:23]} Rfe8 {[%emt 0:09:55]} 17. Ne2 {[%emt 0:12:25]} cxd4 {[%emt 0:03:56]} 18. Nexd4 {[%emt 0:00:37]} Qd7 {[%emt 0:01:04]} 19. Qd2 {[%emt 0:03:33]} Nxd4 {[%emt 0:12:52]} 20. Nxd4 {[%emt 0:00:08]} d5 {[%emt 0:00:36]} 21. Nf3 {[%emt 0:05:48]} Rac8 {[%emt 0:17:02]} 22. Rfd1 {[%emt 0:04:37]} Rxc1 {[%emt 0:07:08]} 23. Qxc1 {[%emt 0:05:19]} Qe6 {[%emt 0:03:35]} 24. Qc7 {[%emt 0:10:00]} dxe4 {[%emt 0:04:07]} 25. Qxb7 {[%emt 0:02:19]} exf3 {[%emt 0:00:07]} 26. Qxf3 {[%emt 0:00:10]} Nc6 {[%emt 0:02:14]} 27. Be3 {[%emt 0:00:27]} Nd4 {[%emt 0:04:32]} 28. Bxd4 {[%emt 0:03:13]} Bxd4 {[%emt 0:00:07]} 29. Rxd4 {[%emt 0:00:37]} Qe1+ {[%emt 0:00:15]} 30. Kh2 {[%emt 0:00:05]} Qxb1 {[%emt 0:00:07]} 31. Rd7 {[%emt 0:00:55]} Rf8 {[%emt 0:00:13]} 32. Qe2 {[%emt 0:00:29]} Qf5 {[%emt 0:00:48]} 33. Ra7 {[%emt 0:00:29]} Rc8 {[%emt 0:01:53]} 34. Qg4 {[%emt 0:00:32]} Qxg4 {[%emt 0:00:35]} 35. hxg4 {[%emt 0:00:06]} Rc6 {[%emt 0:00:11]} 36. Kg3 {[%emt 0:00:47]} 1/2-1/2

[Event "Paul Keres Memorial-U20 Girls 2020"]
[Site "Parnu"]
[Date "2020.07.30"]
[Round "3.3"]
[White "Olde, Grete"]
[Black "Muetsch, Annmarie"]
[Result "0-1"]
[ECO "B25"]
[WhiteElo "1968"]
[BlackElo "2219"]
[Annotator "ChessBase"]
[PlyCount "172"]
[EventDate "2020.07.27"]
[EventType "tourn"]
[EventCountry "EST"]
[SourceTitle "playchess.com"]
[Source "ChessBase"]
[SourceQuality "1"]
[TimeControl "5400+30"]

1. e4 {[%emt 0:00:00]} c5 {[%emt 0:00:00]} 2. Nc3 {[%emt 0:00:00]} Nc6 {[%emt 0:00:00]} 3. g3 {[%emt 0:00:00]} g6 {[%emt 0:00:00]} 4. Bg2 {[%emt 0:00:00]} Bg7 {[%emt 0:00:02]} 5. d3 {[%emt 0:00:02]} d6 {[%emt 0:00:12]} 6. f4 {[%emt 0:00:10]} Nf6 {[%emt 0:00:22]} 7. Nf3 {[%emt 0:00:13]} O-O {[%emt 0:00:49]} 8. O-O {[%emt 0:00:21]} Bg4 {[%emt 0:01:09]} 9. h3 {[%emt 0:02:33]} Bxf3 {[%emt 0:00:45]} 10. Qxf3 {[%emt 0:00:19]} Nd7 {[%emt 0:02:05]} 11. g4 {[%emt 0:04:33]} Rb8 {[%emt 0:04:36]} 12. f5 {[%emt 0:06:39]} Nd4 {[%emt 0:03:44]} 13. Qf2 {[%emt 0:03:35]} e6 {[%emt 0:04:30]} 14. Nd1 {[%emt 0:05:46]} Bf6 {[%emt 0:13:48]} 15. c3 {[%emt 0:05:01]} Nc6 {[%emt 0:05:14]} 16. Bh6 {[%emt 0:03:01]} Bg7 {[%emt 0:03:05]} 17. Bxg7 {[%emt 0:02:47]} Kxg7 {[%emt 0:00:08]} 18. Qg3 {[%emt 0:01:40]} exf5 {[%emt 0:04:36]} 19. exf5 {[%emt 0:03:27]} g5 {[%emt 0:03:46]} 20. Qxd6 {[%emt 0:11:25]} f6 {[%emt 0:06:21]} 21. Nf2 {[%emt 0:03:48]} Nde5 {[%emt 0:05:47]} 22. Qxc5 {[%emt 0:05:40]} Qc7 {[%emt 0:07:09]} 23. Rae1 {[%emt 0:04:26]} Rfe8 {[%emt 0:04:33]} 24. d4 {[%emt 0:02:44]} Nd7 {[%emt 0:00:19]} 25. Qc4 {[%emt 0:01:47]} Nb6 {[%emt 0:02:04]} 26. Qb3 {[%emt 0:02:02]} Na5 {[%emt 0:02:02]} 27. Qc2 {[%emt 0:03:09]} Nac4 {[%emt 0:01:19]} 28. Ne4 {[%emt 0:04:04]} Nd5 {[%emt 0:03:25]} 29. Qf2 {[%emt 0:04:16]} Nf4 {[%emt 0:02:26]} 30. Nc5 {[%emt 0:02:10]} Qd6 {[%emt 0:02:14]} 31. b3 {[%emt 0:01:38]} Nb6 {[%emt 0:01:54]} 32. Nxb7 {[%emt 0:01:00]} Qc7 {[%emt 0:02:38]} 33. Nc5 {[%emt 0:00:19]} Nbd5 {[%emt 0:03:28]} 34. c4 {[%emt 0:03:31]} Nxg2 {[%emt 0:00:32]} 35. Qxg2 {[%emt 0:02:32]} Nf4 {[%emt 0:01:28]} 36. Qf3 {[%emt 0:02:50]} Qd6 {[%emt 0:02:14]} 37. Ne6+ {[%emt 0:02:10]} Nxe6 {[%emt 0:00:52]} 38. fxe6 {[%emt 0:00:07]} Rxe6 {[%emt 0:00:50]} 39. d5 {[%emt 0:01:17]} Re5 {[%emt 0:00:55]} 40. Rxe5 {[%emt 0:01:02]} Qxe5 {[%emt 0:00:06]} 41. Kg2 {[%emt 0:01:11]} Re8 {[%emt 0:00:26]} 42. Qf5 {[%emt 0:01:09]} Qd6 {[%emt 0:00:49]} 43. Rf2 {[%emt 0:00:30]} Re3 {[%emt 0:00:54]} 44. Rf3 {[%emt 0:03:10]} Re2+ {[%emt 0:00:12]} 45. Kf1 {[%emt 0:00:44]} Re5 {[%emt 0:03:34]} 46. Qd3 {[%emt 0:00:28]} Re7 {[%emt 0:02:40]} 47. Rf2 {[%emt 0:00:42]} Qe5 {[%emt 0:00:33]} 48. Qd1 {[%emt 0:01:07]} Qc3 {[%emt 0:00:57]} 49. Qf3 {[%emt 0:00:46]} Re1+ {[%emt 0:01:07]} 50. Kg2 {[%emt 0:00:02]} Re3 {[%emt 0:00:11]} 51. Qd1 {[%emt 0:01:16]} Rg3+ {[%emt 0:00:22]} 52. Kf1 {[%emt 0:00:55]} Rxh3 {[%emt 0:00:16]} 53. Qd2 {[%emt 0:00:51]} Qe5 {[%emt 0:02:11]} 54. Rg2 {[%emt 0:01:14]} Rh1+ {[%emt 0:00:31]} 55. Kf2 {[%emt 0:00:28]} Rb1 {[%emt 0:00:33]} 56. Kf3 {[%emt 0:00:40]} Rf1+ {[%emt 0:00:34]} 57. Rf2 {[%emt 0:00:05]} Rh1 {[%emt 0:00:10]} 58. Rg2 {[%emt 0:00:18]} h5 {[%emt 0:00:30]} 59. gxh5 {[%emt 0:01:07]} Qf5+ {[%emt 0:00:54]} 60. Ke3 {[%emt 0:00:17]} Qf4+ {[%emt 0:00:34]} 61. Kd3 {[%emt 0:00:23]} Qf5+ {[%emt 0:00:29]} 62. Kc3 {[%emt 0:00:29]} Qe5+ {[%emt 0:00:19]} 63. Kb4 {[%emt 0:00:26]} Qb8+ {[%emt 0:00:17]} 64. Ka3 {[%emt 0:00:38]} Qe5 {[%emt 0:00:51]} 65. d6 {[%emt 0:00:36]} Qc5+ {[%emt 0:00:15]} 66. Qb4 {[%emt 0:00:25]} Qc6 {[%emt 0:00:30]} 67. Rd2 {[%emt 0:00:24]} Qd7 {[%emt 0:00:50]} 68. Re2 {[%emt 0:00:36]} Kh6 {[%emt 0:00:25]} 69. Qc5 {[%emt 0:00:54]} Rd1 {[%emt 0:00:27]} 70. Re7 {[%emt 0:00:29]} Qxd6 {[%emt 0:00:24]} 71. Qxd6 {[%emt 0:00:07]} Rxd6 {[%emt 0:00:05]} 72. Kb4 {[%emt 0:00:20]} g4 {[%emt 0:00:15]} 73. c5 {[%emt 0:00:17]} Rd8 {[%emt 0:00:14]} 74. c6 {[%emt 0:00:43]} f5 {[%emt 0:00:14]} 75. Rd7 {[%emt 0:00:51]} Rc8 {[%emt 0:00:29]} 76. Kc4 {[%emt 0:00:40]} g3 {[%emt 0:00:33]} 77. Rd1 {[%emt 0:00:29]} f4 {[%emt 0:00:28]} 78. Kd3 {[%emt 0:00:29]} Rd8+ {[%emt 0:00:27]} 79. Kc2 {[%emt 0:00:11]} Rc8 {[%emt 0:00:26]} 80. Kd3 {[%emt 0:00:03]} Kxh5 {[%emt 0:00:13]} 81. Ke2 {[%emt 0:00:49]} Kg4 {[%emt 0:00:17]} 82. Rc1 {[%emt 0:00:17]} Re8+ {[%emt 0:01:58]} 83. Kf1 {[%emt 0:00:25]} f3 {[%emt 0:00:39]} 84. c7 {[%emt 0:00:37]} g2+ {[%emt 0:00:25]} 85. Kf2 {[%emt 0:00:48]} Re2+ {[%emt 0:00:09]} 86. Kg1 {[%emt 0:00:04]} Kg3 {[%emt 0:00:07]} 0-1

[Event "Paul Keres Memorial-U20 Girls 2020"]
[Site "Parnu"]
[Date "2020.07.30"]
[Round "3.4"]
[White "Tonso, Liina"]
[Black "Limanovska, Elizabete"]
[Result "0-1"]
[ECO "E12"]
[WhiteElo "1862"]
[BlackElo "2179"]
[Annotator "ChessBase"]
[PlyCount "110"]
[EventDate "2020.07.27"]
[EventType "tourn"]
[EventCountry "EST"]
[SourceTitle "playchess.com"]
[Source "ChessBase"]
[SourceQuality "1"]
[TimeControl "5400+30"]

1. d4 {[%emt 0:00:00]} Nf6 {[%emt 0:00:00]} 2. c4 {[%emt 0:00:00]} e6 {[%emt 0:00:00]} 3. Nf3 {[%emt 0:00:00]} b6 {[%emt 0:00:00]} 4. Bf4 {[%emt 0:00:27]} Bb7 {[%emt 0:00:51]} 5. e3 {[%emt 0:00:56]} d5 {[%emt 0:05:21]} 6. Nc3 {[%emt 0:05:40]} c6 {[%emt 0:03:49]} 7. cxd5 {[%emt 0:08:23]} exd5 {[%emt 0:00:39]} 8. Bd3 {[%emt 0:01:01]} Be7 {[%emt 0:00:30]} 9. Ne5 {[%emt 0:02:51]} O-O {[%emt 0:04:53]} 10. O-O {[%emt 0:01:45]} Nbd7 {[%emt 0:05:04]} 11. Qf3 {[%emt 0:03:31]} Nxe5 {[%emt 0:18:15]} 12. Bxe5 {[%emt 0:09:14]} Nd7 {[%emt 0:11:10]} 13. Bf4 {[%emt 0:05:31]} f5 {[%emt 0:04:48]} 14. Qh3 {[%emt 0:08:53]} g6 {[%emt 0:01:04]} 15. Bh6 {[%emt 0:15:53]} Rf7 {[%emt 0:03:05]} 16. Ne2 {[%emt 0:02:47]} Nf6 {[%emt 0:03:45]} 17. Nf4 {[%emt 0:03:46]} Ng4 {[%emt 0:06:45]} 18. Ne6 {[%emt 0:04:48]} Qd6 {[%emt 0:00:47]} 19. Ng5 {[%emt 0:01:13]} Nxh6 {[%emt 0:00:22]} 20. Qxh6 {[%emt 0:00:05]} Rg7 {[%emt 0:00:06]} 21. Rad1 {[%emt 0:05:06]} Bf6 {[%emt 0:02:27]} 22. Bc2 {[%emt 0:02:49]} Rd8 {[%emt 0:01:55]} 23. f3 {[%emt 0:03:33]} Qe7 {[%emt 0:02:51]} 24. Nh3 {[%emt 0:00:16]} c5 {[%emt 0:03:08]} 25. Qf4 {[%emt 0:02:09]} Bc8 {[%emt 0:04:23]} 26. Rfe1 {[%emt 0:02:02]} g5 {[%emt 0:06:16]} 27. Qg3 {[%emt 0:00:53]} cxd4 {[%emt 0:00:53]} 28. exd4 {[%emt 0:00:18]} Qb4 {[%emt 0:00:10]} 29. Bb3 {[%emt 0:02:32]} Bxd4+ {[%emt 0:03:02]} 30. Kh1 {[%emt 0:01:32]} f4 {[%emt 0:05:14]} 31. Nxf4 {[%emt 0:00:22]} gxf4 {[%emt 0:00:02]} 32. Qxf4 {[%emt 0:00:39]} Bc5 {[%emt 0:00:32]} 33. Qe5 {[%emt 0:03:52]} Bb7 {[%emt 0:01:15]} 34. Bxd5+ {[%emt 0:01:22]} Bxd5 {[%emt 0:01:25]} 35. Rxd5 {[%emt 0:00:12]} Rf8 {[%emt 0:00:31]} 36. Red1 {[%emt 0:01:28]} Qh4 {[%emt 0:01:04]} 37. Qe6+ {[%emt 0:00:36]} Kh8 {[%emt 0:00:43]} 38. Rd7 {[%emt 0:00:47]} Qf6 {[%emt 0:00:13]} 39. Qe4 {[%emt 0:00:24]} Qxb2 {[%emt 0:00:16]} 40. R7d2 {[%emt 0:00:55]} Qf6 {[%emt 0:00:21]} 41. Qc4 {[%emt 0:00:40]} Re7 {[%emt 0:00:59]} 42. Qg4 {[%emt 0:00:53]} Rfe8 {[%emt 0:00:52]} 43. h3 {[%emt 0:00:36]} Be3 {[%emt 0:01:01]} 44. Rd6 {[%emt 0:00:11]} Qg7 {[%emt 0:00:13]} 45. Qh4 {[%emt 0:00:15]} Rg8 {[%emt 0:00:08]} 46. g4 {[%emt 0:00:20]} Bg5 {[%emt 0:00:36]} 47. Qf2 {[%emt 0:00:31]} Rf7 {[%emt 0:00:14]} 48. h4 {[%emt 0:00:44]} Be7 {[%emt 0:00:06]} 49. R6d5 {[%emt 0:00:08]} Rgf8 {[%emt 0:00:18]} 50. R1d3 {[%emt 0:00:18]} Qa1+ {[%emt 0:00:35]} 51. Kg2 {[%emt 0:00:09]} Bc5 {[%emt 0:00:05]} 52. Qe2 {[%emt 0:01:07]} Re7 {[%emt 0:01:00]} 53. Qc2 {[%emt 0:00:46]} Qg1+ {[%emt 0:00:27]} 54. Kh3 {[%emt 0:00:04]} Bf2 {[%emt 0:00:35]} 55. Qc3+ {[%emt 0:01:27]} Rg7 {[%emt 0:00:04]} 0-1

[Event "Paul Keres Memorial-U20 Girls 2020"]
[Site "Parnu"]
[Date "2020.07.30"]
[Round "3.5"]
[White "Norlamo, Sarabella"]
[Black "Nilssen, Ellen Fredericia"]
[Result "0-1"]
[ECO "D31"]
[WhiteElo "2023"]
[BlackElo "2071"]
[Annotator "ChessBase"]
[PlyCount "72"]
[EventDate "2020.07.27"]
[EventType "tourn"]
[EventCountry "EST"]
[SourceTitle "playchess.com"]
[Source "ChessBase"]
[SourceQuality "1"]
[TimeControl "5400+30"]

1. d4 {[%emt 0:00:00]} d5 {[%emt 0:00:00]} 2. c4 {[%emt 0:00:00]} e6 {[%emt 0:00:00]} 3. Nc3 {[%emt 0:00:00]} a6 {[%emt 0:00:02]} 4. cxd5 {[%emt 0:01:31]} exd5 {[%emt 0:00:09]} 5. Bf4 {[%emt 0:01:39]} Nf6 {[%emt 0:00:33]} 6. e3 {[%emt 0:00:33]} Bd6 {[%emt 0:02:58]} 7. Bg3 {[%emt 0:03:05]} Be6 {[%emt 0:05:08]} 8. Bd3 {[%emt 0:00:57]} O-O {[%emt 0:00:23]} 9. Nge2 {[%emt 0:02:22]} Qe7 {[%emt 0:02:56]} 10. O-O {[%emt 0:03:45]} Bxg3 {[%emt 0:08:16]} 11. Nxg3 {[%emt 0:00:24]} Nbd7 {[%emt 0:00:51]} 12. Rc1 {[%emt 0:04:34]} Rac8 {[%emt 0:04:01]} 13. Na4 {[%emt 0:05:31]} Qb4 {[%emt 0:05:43]} 14. a3 {[%emt 0:05:12]} Qe7 {[%emt 0:02:37]} 15. Qb3 {[%emt 0:01:43]} b5 {[%emt 0:02:30]} 16. Nc5 {[%emt 0:00:44]} Nxc5 {[%emt 0:00:12]} 17. Rxc5 {[%emt 0:00:08]} Nd7 {[%emt 0:00:04]} 18. Rc6 {[%emt 0:04:57]} Nb8 {[%emt 0:02:19]} 19. Rc5 {[%emt 0:01:41]} c6 {[%emt 0:09:20]} 20. Nf5 {[%emt 0:05:22]} Qd7 {[%emt 0:05:26]} 21. Nh4 {[%emt 0:00:30]} a5 {[%emt 0:00:32]} 22. Qc2 {[%emt 0:03:56]} h6 {[%emt 0:00:39]} 23. Rc1 {[%emt 0:00:38]} Rc7 {[%emt 0:06:25]} 24. Bxb5 {[%emt 0:04:51]} Rfc8 {[%emt 0:03:40]} 25. Ba4 {[%emt 0:00:29]} Qd8 {[%emt 0:02:13]} 26. Nf3 {[%emt 0:00:37]} Nd7 {[%emt 0:05:21]} 27. Rxa5 {[%emt 0:07:13]} c5 {[%emt 0:00:07]} 28. Qd2 {[%emt 0:18:28]} cxd4 {[%emt 0:00:39]} 29. Rd1 {[%emt 0:01:58]} dxe3 {[%emt 0:01:12]} 30. fxe3 {[%emt 0:01:09]} Nc5 {[%emt 0:01:23]} 31. Nd4 {[%emt 0:03:02]} Bg4 {[%emt 0:02:20]} 32. Rf1 {[%emt 0:01:35]} Ne4 {[%emt 0:01:35]} 33. Qe1 {[%emt 0:01:24]} Rc1 {[%emt 0:01:07]} 34. Nc6 {[%emt 0:10:37]} Rxe1 {[%emt 0:00:12]} 35. Nxd8 {[%emt 0:00:07]} Rxf1+ {[%emt 0:00:07]} 36. Kxf1 {[%emt 0:00:06]} Rc1+ {[%emt 0:00:07]} 0-1

[Event "Paul Keres Memorial-U20 Girls 2020"]
[Site "Parnu"]
[Date "2020.07.30"]
[Round "4.1"]
[White "Olde, Margareth"]
[Black "Nilssen, Ellen Fredericia"]
[Result "1/2-1/2"]
[ECO "D30"]
[WhiteElo "2201"]
[BlackElo "2071"]
[Annotator "ChessBase"]
[PlyCount "77"]
[EventDate "2020.07.27"]
[EventType "tourn"]
[EventCountry "EST"]
[SourceTitle "playchess.com"]
[Source "ChessBase"]
[SourceQuality "1"]
[TimeControl "5400+30"]

1. d4 {[%emt 0:00:00]} d5 {[%emt 0:00:00]} 2. c4 {[%emt 0:00:00]} e6 {[%emt 0:00:00]} 3. Nf3 {[%emt 0:00:00]} a6 {[%emt 0:00:00]} 4. g3 {[%emt 0:01:02]} dxc4 {[%emt 0:00:00]} 5. Bg2 {[%emt 0:00:14]} b5 {[%emt 0:00:08]} 6. a4 {[%emt 0:07:54]} Bb7 {[%emt 0:00:07]} 7. axb5 {[%emt 0:06:44]} axb5 {[%emt 0:00:07]} 8. Rxa8 {[%emt 0:00:03]} Bxa8 {[%emt 0:00:08]} 9. b3 {[%emt 0:00:25]} Bb4+ {[%emt 0:20:29]} 10. Bd2 {[%emt 0:04:20]} Bxd2+ {[%emt 0:10:09]} 11. Qxd2 {[%emt 0:00:31]} cxb3 {[%emt 0:03:49]} 12. Qb4 {[%emt 0:02:44]} c6 {[%emt 0:01:10]} 13. O-O {[%emt 0:12:15]} Ne7 {[%emt 0:01:52]} 14. Qxb3 {[%emt 0:01:31]} O-O {[%emt 0:00:13]} 15. Nbd2 {[%emt 0:02:27]} Nd7 {[%emt 0:03:58]} 16. Ne4 {[%emt 0:01:18]} Nd5 {[%emt 0:04:28]} 17. Rd1 {[%emt 0:10:35]} Qb6 {[%emt 0:05:36]} 18. Qc2 {[%emt 0:01:39]} N5f6 {[%emt 0:04:54]} 19. Nc5 {[%emt 0:07:04]} Rd8 {[%emt 0:00:20]} 20. Nb3 {[%emt 0:03:08]} h6 {[%emt 0:02:47]} 21. e4 {[%emt 0:03:28]} Rc8 {[%emt 0:05:25]} 22. Nc5 {[%emt 0:01:30]} Rd8 {[%emt 0:01:09]} 23. e5 {[%emt 0:03:10]} Nd5 {[%emt 0:01:36]} 24. Ne4 {[%emt 0:00:49]} Rc8 {[%emt 0:02:58]} 25. Rc1 {[%emt 0:03:04]} Rc7 {[%emt 0:02:50]} 26. h4 {[%emt 0:04:29]} Qa5 {[%emt 0:02:56]} 27. Nfd2 {[%emt 0:02:10]} Qa4 {[%emt 0:02:55]} 28. Nb3 {[%emt 0:01:51]} Nb4 {[%emt 0:02:42]} 29. Qb1 {[%emt 0:00:31]} Ra7 {[%emt 0:01:35]} 30. Nec5 {[%emt 0:08:58]} Nxc5 {[%emt 0:00:19]} 31. Nxc5 {[%emt 0:00:18]} Qa3 {[%emt 0:00:16]} 32. Be4 {[%emt 0:00:40]} Nd5 {[%emt 0:00:37]} 33. Nb3 {[%emt 0:03:41]} Qb4 {[%emt 0:01:17]} 34. Bxd5 {[%emt 0:02:33]} exd5 {[%emt 0:00:06]} 35. Qc2 {[%emt 0:00:06]} Ra3 {[%emt 0:03:12]} 36. Rb1 {[%emt 0:00:52]} Qa4 {[%emt 0:01:36]} 37. Qf5 {[%emt 0:03:35]} Rxb3 {[%emt 0:06:57]} 38. Qc8+ {[%emt 0:00:10]} Kh7 {[%emt 0:00:05]} 39. Qf5+ {[%emt 0:00:08]} 1/2-1/2

[Event "Paul Keres Memorial-U20 Girls 2020"]
[Site "Parnu"]
[Date "2020.07.30"]
[Round "4.2"]
[White "Limanovska, Elizabete"]
[Black "Norlamo, Sarabella"]
[Result "1-0"]
[ECO "C55"]
[WhiteElo "2179"]
[BlackElo "2023"]
[Annotator "ChessBase"]
[PlyCount "109"]
[EventDate "2020.07.27"]
[EventType "tourn"]
[EventCountry "EST"]
[SourceTitle "playchess.com"]
[Source "ChessBase"]
[SourceQuality "1"]
[TimeControl "5400+30"]

1. e4 {[%emt 0:00:00]} e5 {[%emt 0:00:00]} 2. Nf3 {[%emt 0:00:00]} Nc6 {[%emt 0:00:00]} 3. Bc4 {[%emt 0:00:00]} Nf6 {[%emt 0:00:00]} 4. d3 {[%emt 0:00:00]} Be7 {[%emt 0:00:11]} 5. O-O {[%emt 0:00:00]} O-O {[%emt 0:00:07]} 6. Re1 {[%emt 0:00:26]} d6 {[%emt 0:00:37]} 7. a4 {[%emt 0:00:26]} Be6 {[%emt 0:02:53]} 8. Nbd2 {[%emt 0:00:36]} Nd7 {[%emt 0:17:29]} 9. c3 {[%emt 0:04:53]} a5 {[%emt 0:01:55]} 10. b3 {[%emt 0:20:02]} Qe8 {[%emt 0:07:19]} 11. Nf1 {[%emt 0:01:41]} Bxc4 {[%emt 0:04:58]} 12. bxc4 {[%emt 0:00:10]} f5 {[%emt 0:03:25]} 13. exf5 {[%emt 0:03:17]} Rxf5 {[%emt 0:00:07]} 14. Ne3 {[%emt 0:00:09]} Rf8 {[%emt 0:02:01]} 15. Nd5 {[%emt 0:00:31]} Bd8 {[%emt 0:11:35]} 16. Rb1 {[%emt 0:08:45]} b6 {[%emt 0:03:48]} 17. Be3 {[%emt 0:01:27]} Ne7 {[%emt 0:03:52]} 18. Nxe7+ {[%emt 0:04:39]} Bxe7 {[%emt 0:02:30]} 19. d4 {[%emt 0:02:40]} Rd8 {[%emt 0:08:38]} 20. Qe2 {[%emt 0:07:35]} Qh5 {[%emt 0:04:14]} 21. Rb5 {[%emt 0:08:25]} Rf5 {[%emt 0:05:46]} 22. Qc2 {[%emt 0:08:56]} Rdf8 {[%emt 0:02:40]} 23. Nd2 {[%emt 0:06:30]} Bg5 {[%emt 0:05:30]} 24. f3 {[%emt 0:06:07]} Bxe3+ {[%emt 0:02:00]} 25. Rxe3 {[%emt 0:00:04]} Qh6 {[%emt 0:02:13]} 26. Nf1 {[%emt 0:03:43]} Qg5 {[%emt 0:04:00]} 27. Qd3 {[%emt 0:01:17]} Qg6 {[%emt 0:02:22]} 28. Ng3 {[%emt 0:02:29]} Rg5 {[%emt 0:00:01]} 29. Qe2 {[%emt 0:01:47]} h5 {[%emt 0:00:54]} 30. Rb2 {[%emt 0:02:05]} h4 {[%emt 0:00:28]} 31. Ne4 {[%emt 0:00:02]} Rgf5 {[%emt 0:00:33]} 32. h3 {[%emt 0:01:48]} Nf6 {[%emt 0:00:50]} 33. Nxf6+ {[%emt 0:01:26]} gxf6 {[%emt 0:00:47]} 34. Re4 {[%emt 0:00:37]} Qh6 {[%emt 0:00:40]} 35. Qe1 {[%emt 0:01:28]} Rf4 {[%emt 0:00:28]} 36. Rbe2 {[%emt 0:00:04]} Kf7 {[%emt 0:01:08]} 37. Rxf4 {[%emt 0:01:09]} Qxf4 {[%emt 0:00:02]} 38. dxe5 {[%emt 0:01:45]} dxe5 {[%emt 0:01:06]} 39. Re4 {[%emt 0:00:10]} Qg3 {[%emt 0:00:22]} 40. Qd2 {[%emt 0:00:08]} Ke7 {[%emt 0:00:49]} 41. Rg4 {[%emt 0:00:11]} Rd8 {[%emt 0:00:33]} 42. Qe2 {[%emt 0:00:12]} Kd6 {[%emt 0:01:35]} 43. Rxg3 {[%emt 0:00:06]} hxg3 {[%emt 0:00:01]} 44. Qe1 {[%emt 0:00:24]} Rg8 {[%emt 0:00:08]} 45. Qe4 {[%emt 0:00:31]} c6 {[%emt 0:00:22]} 46. Qf5 {[%emt 0:00:29]} Rf8 {[%emt 0:01:17]} 47. Qg6 {[%emt 0:00:05]} Kc5 {[%emt 0:00:11]} 48. Qxg3 {[%emt 0:00:34]} Kxc4 {[%emt 0:00:02]} 49. Qe1 {[%emt 0:01:26]} Rd8 {[%emt 0:01:20]} 50. Qe4+ {[%emt 0:01:01]} Kc5 {[%emt 0:00:02]} 51. Qe3+ {[%emt 0:00:38]} Kc4 {[%emt 0:00:20]} 52. Qxb6 {[%emt 0:00:04]} Rd1+ {[%emt 0:00:09]} 53. Kh2 {[%emt 0:00:02]} Kxc3 {[%emt 0:00:26]} 54. Qxc6+ {[%emt 0:00:03]} Kb4 {[%emt 0:00:27]} 55. Qb5+ {[%emt 0:00:13]} 1-0